bitfinex/quotes_SOLUSD_20250308
["timestamp","ask_amount","ask_price","bid_price","bid_amount"]
[1741439169993,21.46671784,138.24,138.2,89.4104]
[1741439170192,21.46671784,138.24,138.2,8.0104]
[1741439170405,21.46671784,138.23,138.2,8.0104]
[1741439170796,21.46671784,138.22,138.2,0.033]
[1741439171196,21.46671784,138.23,138.2,0.033]
[1741439171396,21.46671784,138.24,138.2,0.033]
[1741439171830,6.64,138.25,138.22,21.46671784]
[1741439172140,156.6,138.28,138.23,21.46671784]
[1741439172432,156.6,138.28,138.24,21.46671784]
[1741439172602,156.6,138.28,138.23,102.86671784]
[1741439172997,156.6,138.28,138.24,36.67781784]
[1741439173199,156.6,138.28,138.26,21.46671784]
[1741439174413,156.6,138.28,138.25,21.46671784]
[1741439174616,156.6,138.28,138.24,118.07781784]
[1741439175503,178.06671784,138.28,138.24,7.9774]
[1741439175836,156.6,138.28,138.24,15.2109]
[1741439176219,178.06671784,138.28,138.24,1.6665]
[1741439176723,178.06671784,138.28,138.24,8.9002]
[1741439177220,190.98678743,138.28,138.24,8.9002]
[1741439177418,156.6,138.28,138.24,43.28698743]
[1741439177600,156.6,138.28,138.25,34.38678743]
[1741439177802,156.6,138.28,138.24,43.28698743]
[1741439178827,34.38678743,138.32,138.26,53.03643629]
[1741439179029,34.38678743,138.31,138.26,81.4]
[1741439180227,34.38678743,138.31,138.26,88.6326]
[1741439180533,34.38678743,138.32,138.27,34.38678743]
[1741439180745,34.38678743,138.33,138.27,34.38678743]
[1741439180939,34.38678743,138.34,138.28,34.38678743]
[1741439181443,34.38678743,138.34,138.29,6.6303]
[1741439181813,34.38678743,138.35,138.29,41.01708743]
[1741439182237,156.68,138.36,138.31,34.38678743]
[1741439182418,156.68,138.36,138.32,7.2296]
[1741439182626,191.06678743,138.36,138.32,7.2296]
[1741439183015,156.68,138.36,138.32,43.27958743]
[1741439183213,156.68,138.36,138.33,34.38678743]
[1741439183435,0.03,138.37,138.34,34.38678743]
[1741439184008,0.03,138.37,138.34,115.78678743]
[1741439184245,0.03,138.37,138.36,73.03643629]
[1741439184545,0.03,138.37,138.36,154.43643629]
[1741439184840,0.03,138.37,138.36,160.80043629]
[1741439186521,0.03,138.37,138.36,168.02793629]
[1741439187126,0.03,138.37,138.36,107.764]
[1741439187662,0.03,138.37,138.34,81.4]
[1741439188338,0.03,138.37,138.35,41.61438743]
[1741439188849,0.03,138.37,138.36,34.38678743]
[1741439189024,0.03,138.37,138.36,53.03643629]
[1741439189425,0.03,138.37,138.36,134.43643629]
[1741439190568,0.03,138.37,138.36,141.66393629]
[1741439193845,0.0001,138.41,138.37,18.64964886]
[1741439194076,0.0001,138.41,138.39,34.38678743]
[1741439194467,0.0001,138.41,138.4,53.03643629]
[1741439194774,0.0001,138.41,138.4,81.4]
[1741439195863,34.38688743,138.41,138.35,7.9906]
[1741439196062,34.38678743,138.39,138.35,89.3906]
[1741439196281,34.38678743,138.4,138.35,123.77738743]
[1741439196653,0.0001,138.41,138.36,53.03643629]
[1741439197370,41.61188743,138.41,138.36,18.64964886]
[1741439197697,41.61188743,138.41,138.35,123.77738743]
[1741439197856,34.38678743,138.4,138.35,89.3906]
[1741439198482,34.38678743,138.38,138.34,81.433]
[1741439198655,25.2873,138.41,138.34,0.033]
[1741439198656,34.38678743,138.36,138.34,0.033]
[1741439199688,34.38678743,138.35,138.34,0.033]
[1741439200586,41.61478743,138.35,138.34,0.033]
[1741439200876,34.38678743,138.31,138.27,7.9906]
[1741439201073,34.38678743,138.31,138.27,89.3906]
[1741439201983,34.38678743,138.32,138.27,89.3906]
[1741439202488,7.228,138.35,138.3,34.38678743]
[1741439202790,7.228,138.35,138.3,81.4]
[1741439202791,34.38678743,138.34,138.3,81.4]
[1741439203151,34.38678743,138.33,138.3,81.4]
[1741439203775,34.38678743,138.32,138.3,81.4]
[1741439203987,34.38678743,138.32,138.28,18.64964886]
[1741439204190,25.2981,138.35,138.28,53.03643629]
[1741439204191,34.38678743,138.34,138.28,53.03643629]
[1741439204497,34.38678743,138.31,138.28,81.4]
[1741439204788,34.38678743,138.3,138.27,89.3906]
[1741439205086,34.38678743,138.31,138.27,7.9906]
[1741439207592,41.61688743,138.31,138.27,7.9906]
[1741439207766,34.38678743,138.3,138.27,1.5146]
[1741439208690,41.61688743,138.31,138.27,1.5146]
[1741439209059,34.38678743,138.3,138.27,1.5146]
[1741439209990,34.38678743,138.3,138.27,1.5476]
[1741439210201,34.38678743,138.32,138.27,1.5476]
[1741439210360,34.38678743,138.32,138.27,8.7795]
[1741439211075,41.12678743,138.33,138.28,18.64964886]
[1741439211283,41.12678743,138.33,138.28,100.04964886]
[1741439211776,34.41678743,138.34,138.28,134.43643629]
[1741439213391,21.50405137,138.34,138.29,7.2311]
[1741439213884,28.73265137,138.34,138.29,7.2311]
[1741439214257,7.2586,138.34,138.28,81.4]
[1741439214456,21.47405137,138.31,138.28,81.4]
[1741439214877,21.47405137,138.31,138.27,96.8994]
[1741439216088,21.47405137,138.31,138.27,89.6676]
[1741439216403,21.47405137,138.3,138.27,89.6676]
[1741439216601,21.47405137,138.3,138.27,82.9476]
[1741439217579,21.47405137,138.31,138.27,90.1798]
[1741439218084,21.47405137,138.31,138.27,82.9476]
[1741439218691,21.47405137,138.31,138.27,90.1796]
[1741439219099,21.47405137,138.32,138.27,90.1796]
[1741439219275,0.03,138.34,138.27,90.1796]
[1741439219480,21.47405137,138.33,138.28,18.64964886]
[1741439219682,21.50405137,138.34,138.28,40.12370023]
[1741439220216,21.50405137,138.34,138.28,21.47405137]
[1741439220371,21.50405137,138.34,138.29,7.2311]
[1741439221398,0.03,138.34,138.27,82.9476]
[1741439221694,21.47405137,138.3,138.27,1.5476]
[1741439222265,21.47405137,138.3,138.27,8.7797]
[1741439222499,21.47405137,138.31,138.27,8.7797]
[1741439224007,21.47405137,138.31,138.27,1.5476]
[1741439224195,21.47405137,138.3,138.27,1.5476]
[1741439224905,21.47405137,138.31,138.27,1.5476]
[1741439225211,21.47405137,138.33,138.27,8.7797]
[1741439225383,21.47405137,138.33,138.27,111.65375137]
[1741439225583,21.47405137,138.31,138.27,82.9476]
[1741439226511,21.47405137,138.3,138.27,82.9476]
[1741439227008,7.229,138.33,138.27,82.9476]
[1741439227009,21.47405137,138.29,138.27,82.9476]
[1741439227720,21.47405137,138.28,138.27,0.033]
[1741439228690,28.70575137,138.28,138.27,0.033]
[1741439230587,28.70575137,138.28,138.24,0.033]
[1741439230588,46.78495137,138.28,138.24,0.033]
[1741439230798,21.47405137,138.25,138.24,0.033]
[1741439231704,42.94810274,138.25,138.24,0.033]
[1741439232111,21.47405137,138.25,138.24,0.033]
[1741439232720,28.70725137,138.25,138.24,0.033]
[1741439233323,50.18130274,138.25,138.24,0.033]
[1741439233612,21.47405137,138.25,138.24,0.033]
[1741439234112,21.47405137,138.26,138.24,0.033]
[1741439235731,21.47405137,138.27,138.24,0.033]
[1741439237229,21.47405137,138.28,138.24,0.033]
[1741439237393,21.47405137,138.28,138.24,81.433]
[1741439237753,156.68,138.3,138.26,21.47405137]
[1741439238024,156.68,138.3,138.26,102.87405137]
[1741439238203,156.68,138.3,138.26,81.4]
[1741439238918,156.68,138.3,138.27,25.88184886]
[1741439239097,156.68,138.3,138.27,7.2322]
[1741439240240,156.68,138.3,138.29,20.0]
[1741439240404,21.47405137,138.33,138.29,20.0]
[1741439240742,21.47405137,138.33,138.29,101.4]
[1741439240914,21.50405137,138.34,138.3,7.2306]
[1741439241628,21.47405137,138.33,138.3,7.2306]
[1741439242504,21.50405137,138.34,138.3,7.2306]
[1741439243826,21.47405137,138.33,138.29,108.631]
[1741439244213,21.47405137,138.32,138.29,101.4]
[1741439244412,21.47405137,138.31,138.29,101.4]
[1741439244807,21.47405137,138.31,138.29,81.4]
[1741439245313,21.47405137,138.32,138.29,81.4]
[1741439246551,0.03,138.34,138.3,6.5367]
[1741439246732,21.50405137,138.34,138.3,6.5367]
[1741439247319,21.47405137,138.32,138.3,6.5367]
[1741439247637,21.47405137,138.31,138.26,106.58634886]
[1741439247803,21.47405137,138.3,138.26,106.58634886]
[1741439248704,21.47405137,138.29,138.26,87.9367]
[1741439249326,21.47405137,138.3,138.26,87.9367]
[1741439249930,21.47405137,138.28,138.26,6.5367]
[1741439251154,21.47405137,138.3,138.26,32.41894886]
[1741439251320,28.15405137,138.32,138.26,53.89300023]
[1741439251647,28.15405137,138.32,138.26,135.29300023]
[1741439251843,21.47405137,138.3,138.26,87.9367]
[1741439252047,21.47405137,138.3,138.26,95.1693]
[1741439252223,21.47405137,138.29,138.26,87.9367]
[1741439252427,21.47405137,138.3,138.26,13.7693]
[1741439253747,21.47405137,138.3,138.26,32.41894886]
[1741439253920,21.50405137,138.34,138.29,18.64964886]
[1741439254126,0.03,138.34,138.31,18.64964886]
[1741439255554,0.03,138.34,138.3,23.09695137]
[1741439255555,21.47405137,138.33,138.3,1.6229]
[1741439255928,21.50405137,138.34,138.3,1.6229]
[1741439256723,21.50405137,138.34,138.3,8.8535]
[1741439257042,21.50405137,138.34,138.3,1.6229]
[1741439259451,0.03,138.34,138.31,18.64964886]
[1741439260145,0.03,138.34,138.31,25.87954886]
[1741439262053,0.03,138.34,138.32,6.5893]
[1741439262649,0.03,138.34,138.32,87.9893]
[1741439263563,0.03,138.34,138.3,1.6229]
[1741439263564,21.47405137,138.33,138.28,87.9893]
[1741439263751,21.47405137,138.3,138.28,6.5893]
[1741439264361,21.47405137,138.29,138.26,1.5729]
[1741439264537,21.47405137,138.27,138.26,1.5729]
[1741439265438,21.47405137,138.28,138.26,1.5729]
[1741439265683,21.47405137,138.29,138.26,1.5729]
[1741439266349,21.47405137,138.28,138.26,1.5729]
[1741439266860,21.47405137,138.29,138.26,1.5729]
[1741439267844,21.47405137,138.3,138.26,8.8055]
[1741439268070,21.47405137,138.3,138.26,90.2055]
[1741439268686,163.8787,138.34,138.26,82.9729]
[1741439268687,21.50405137,138.28,138.26,82.9729]
[1741439268852,0.03,138.28,138.26,82.9729]
[1741439269571,0.03,138.28,138.26,90.2055]
[1741439271444,21.47405137,138.33,138.27,40.12370023]
[1741439271650,21.47405137,138.33,138.27,121.52370023]
[1741439272560,21.47405137,138.33,138.28,7.2317]
[1741439272759,21.47405137,138.32,138.28,7.2317]
[1741439273179,21.47405137,138.3,138.27,88.632]
[1741439275381,21.47405137,138.32,138.27,88.632]
[1741439275582,21.47405137,138.32,138.28,18.64964886]
[1741439275768,21.47405137,138.33,138.28,18.64964886]
[1741439275968,21.47405137,138.32,138.28,100.04964886]
[1741439277285,21.47405137,138.32,138.29,7.2311]
[1741439278991,21.47405137,138.33,138.29,7.2311]
[1741439279203,178.12405137,138.34,138.3,24.92284886]
[1741439279405,0.03,138.34,138.31,23.07745137]
[1741439279703,0.03,138.34,138.32,18.64964886]
[1741439280795,0.03,138.34,138.32,7.2293]
[1741439281001,0.03,138.34,138.32,25.87894886]
[1741439281409,0.03,138.34,138.32,107.27894886]
[1741439283625,0.03,138.34,138.33,18.64964886]
[1741439285113,0.03,138.34,138.33,40.12370023]
[1741439285519,0.03,138.34,138.33,47.35270023]
[1741439286332,0.0001,138.41,138.36,20.0]
[1741439286517,21.47415137,138.41,138.36,107.7662]
[1741439287631,21.47415137,138.41,138.36,114.9932]
[1741439288129,0.0001,138.41,138.36,107.7662]
[1741439288335,21.47405137,138.38,138.36,107.7662]
[1741439288515,21.47405137,138.39,138.36,107.7662]
[1741439289545,21.47415137,138.41,138.36,114.9936]
[1741439290143,21.47405137,138.4,138.36,114.9936]
[1741439290317,21.47405137,138.37,138.36,81.4]
[1741439290633,21.47405137,138.37,138.33,100.04964886]
[1741439291134,21.47405137,138.37,138.33,107.27854886]
[1741439292140,21.47405137,138.37,138.33,81.4]
[1741439292141,28.70105137,138.37,138.33,81.4]
[1741439292314,21.47405137,138.36,138.33,81.4]
[1741439293038,21.47405137,138.36,138.33,88.6289]
[1741439293240,21.47405137,138.37,138.33,88.6289]
[1741439293437,21.50405137,138.37,138.33,88.6289]
[1741439293742,0.03,138.37,138.33,88.6289]
[1741439296225,0.03,138.37,138.33,110.10295137]
[1741439296917,0.03,138.37,138.34,40.12370023]
[1741439297427,0.03,138.37,138.36,20.0]
[1741439297610,0.03,138.37,138.36,38.64964886]
[1741439297815,0.03,138.37,138.36,67.35120023]
[1741439299541,21.50405137,138.37,138.34,81.4]
[1741439300131,0.03,138.37,138.34,81.4]
[1741439300621,0.03,138.37,138.34,88.6284]
[1741439302127,0.03,138.37,138.35,40.12370023]
[1741439303425,0.03,138.37,138.36,7.2275]
[1741439303751,0.03,138.37,138.35,25.87754886]
[1741439304121,0.03,138.37,138.35,107.27754886]
[1741439305629,0.03,138.37,138.35,128.75160023]
[1741439305947,0.03,138.37,138.36,21.47405137]
[1741439307250,0.03,138.37,138.36,28.70155137]
[1741439307744,0.03,138.37,138.36,111.71385137]
[1741439308122,0.03,138.37,138.36,90.2398]
[1741439309329,0.03,138.37,138.36,100.04964886]
[1741439309843,0.03,138.37,138.36,81.4]
[1741439316268,0.03,138.37,138.36,88.6275]
[1741439316448,0.03,138.37,138.36,128.75120023]
[1741439318565,0.03,138.37,138.36,81.4]
[1741439320165,0.03,138.37,138.36,88.6275]
[1741439320664,0.03,138.37,138.36,81.4]
[1741439321265,0.03,138.37,138.36,88.6275]
[1741439321649,0.03,138.37,138.36,107.27714886]
[1741439322356,0.03,138.37,138.36,121.00806378]
[1741439323268,0.0001,138.41,138.39,20.0]
[1741439323562,0.0001,138.41,138.39,101.4]
[1741439324965,0.0001,138.41,138.4,7.2254]
[1741439328046,13.73101492,138.41,138.39,81.4]
[1741439328483,13.73091492,138.4,138.39,81.4]
[1741439328854,13.73091492,138.4,138.36,88.6273]
[1741439329068,13.73091492,138.39,138.36,88.6273]
[1741439329979,13.73091492,138.39,138.36,88.6603]
[1741439331747,13.73091492,138.38,138.36,81.433]
[1741439331953,13.73091492,138.37,138.36,81.433]
[1741439332260,13.73091492,138.37,138.36,0.033]
[1741439333483,21.47217335,138.37,138.36,0.033]
[1741439334786,28.69917335,138.37,138.36,0.033]
[1741439336073,21.47217335,138.37,138.36,0.033]
[1741439337874,28.07217335,138.37,138.36,0.033]
[1741439341297,21.47217335,138.37,138.36,0.033]
[1741439342069,28.69917335,138.37,138.36,0.033]
[1741439342707,50.6903,138.36,138.34,0.033]
[1741439342898,6.6,138.35,138.34,0.033]
[1741439343080,28.07217335,138.35,138.34,0.033]
[1741439343279,28.07217335,138.35,138.33,0.033]
[1741439343489,92.9443467,138.34,138.33,0.033]
[1741439344501,100.1728467,138.34,138.33,0.033]
[1741439346374,25.0963387,138.34,138.33,0.033]
[1741439346705,32.3248387,138.34,138.33,0.033]
[1741439352097,28.70067335,138.34,138.33,0.033]
[1741439355305,20.97941893,138.34,138.33,0.033]
[1741439359686,125.98309465,138.34,138.33,0.0001]
[1741439359891,144.05449465,138.34,138.28,0.033]
[1741439360214,13.75091893,138.29,138.28,0.033]
[1741439362114,13.75091893,138.31,138.28,0.033]
[1741439362296,13.75091893,138.3,138.28,0.033]
[1741439364403,13.75091893,138.32,138.28,0.033]
[1741439365421,13.75091893,138.33,138.28,0.033]
[1741439365611,13.75091893,138.33,138.28,18.68264886]
[1741439365915,13.75091893,138.33,138.28,0.033]
[1741439366109,13.75091893,138.33,138.28,18.68264886]
[1741439366603,13.75091893,138.33,138.28,32.43356779]
[1741439367111,13.75091893,138.32,138.28,18.68264886]
[1741439367506,13.75091893,138.32,138.28,25.91394886]
[1741439369403,13.75091893,138.32,138.28,107.31394886]
[1741439371720,13.75091893,138.3,138.28,81.433]
[1741439371921,13.75091893,138.29,138.28,81.433]
[1741439372099,13.75091893,138.29,138.28,0.033]
[1741439373819,20.98201893,138.29,138.28,0.033]
[1741439375809,39.63166779,138.29,138.28,0.033]
[1741439376002,57.70956779,138.29,138.25,0.033]
[1741439376199,13.75091893,138.26,138.25,0.033]
[1741439376403,20.35091893,138.26,138.25,0.033]
[1741439377952,27.58361893,138.26,138.25,0.033]
[1741439379215,20.35091893,138.26,138.25,0.033]
[1741439380934,6.6,138.26,138.25,0.033]
[1741439381119,20.35091893,138.26,138.25,0.033]
[1741439381311,27.58361893,138.26,138.25,0.033]
[1741439382840,20.35091893,138.26,138.25,0.033]
[1741439383347,27.58361893,138.26,138.25,0.033]
[1741439384537,20.35091893,138.26,138.25,0.033]
[1741439385727,27.58361893,138.26,138.25,0.033]
[1741439386911,230.47672199,138.3,138.25,0.033]
[1741439386912,168.99962199,138.3,138.25,0.033]
[1741439387227,13.75091893,138.28,138.25,0.033]
[1741439389140,13.75091893,138.27,138.25,0.033]
[1741439389644,13.75091893,138.26,138.25,0.033]
[1741439392719,13.75091893,138.27,138.25,0.033]
[1741439394047,0.03,138.28,138.26,1.5171]
[1741439395223,13.75091893,138.27,138.26,1.5171]
[1741439396252,13.78091893,138.28,138.26,1.5171]
[1741439397150,13.75091893,138.27,138.25,0.033]
[1741439399245,0.03,138.28,138.25,0.033]
[1741439400958,13.78091893,138.28,138.25,0.033]
[1741439401436,13.75091893,138.27,138.25,0.033]
[1741439402163,13.78091893,138.28,138.25,0.033]
[1741439402988,0.03,138.28,138.25,0.033]
[1741439403763,13.78091893,138.28,138.25,0.033]
[1741439403962,13.75091893,138.27,138.25,0.033]
[1741439404991,13.75091893,138.26,138.25,0.033]
[1741439405285,13.75091893,138.27,138.25,0.033]
[1741439407087,13.75091893,138.26,138.25,0.033]
[1741439407379,13.75091893,138.27,138.25,0.033]
[1741439407792,13.78091893,138.28,138.25,0.033]
[1741439408884,13.75091893,138.27,138.25,0.033]
[1741439409884,0.03,138.28,138.25,0.033]
[1741439410691,0.03,138.28,138.26,18.64964886]
[1741439411387,0.03,138.28,138.26,25.88184886]
[1741439411800,13.75091893,138.27,138.25,81.433]
[1741439411989,13.75091893,138.27,138.25,0.033]
[1741439412712,13.75091893,138.26,138.25,0.033]
[1741439415486,20.98361893,138.26,138.25,0.033]
[1741439415683,131.2,138.25,138.24,0.0001]
[1741439415889,120.75459465,138.25,138.2,0.033]
[1741439416088,63.75091893,138.21,138.14,6.4954]
[1741439416311,87.8,138.2,138.14,0.033]
[1741439416512,50.0,138.18,138.14,0.033]
[1741439416717,55.78400479,138.18,138.14,0.033]
[1741439417292,50.0,138.18,138.14,0.033]
[1741439417904,13.75091893,138.17,138.14,0.033]
[1741439418689,156.72,138.19,138.14,0.033]
[1741439419018,156.72,138.19,138.15,32.40056779]
[1741439419203,156.72,138.19,138.15,18.64964886]
[1741439419410,156.72,138.19,138.15,40.16587133]
[1741439420822,156.72,138.19,138.15,47.40417133]
[1741439421235,178.23622247,138.19,138.14,81.433]
[1741439421399,21.51622247,138.18,138.14,81.433]
[1741439421827,21.51622247,138.18,138.14,88.6719]
[1741439422130,178.23622247,138.19,138.14,88.6719]
[1741439422306,178.23622247,138.19,138.14,110.18812247]
[1741439422307,156.72,138.19,138.14,110.18812247]
[1741439422631,178.23622247,138.19,138.14,110.18812247]
[1741439422805,178.23622247,138.19,138.14,28.78812247]
[1741439423127,156.72,138.19,138.14,28.78812247]
[1741439424024,21.51622247,138.18,138.14,18.68264886]
[1741439425437,21.51622247,138.18,138.14,0.033]
[1741439425815,21.51622247,138.17,138.14,0.033]
[1741439427611,28.75362247,138.17,138.14,0.033]
[1741439427819,21.51622247,138.17,138.14,0.033]
[1741439431812,28.75362247,138.17,138.14,0.033]
[1741439434639,21.51622247,138.17,138.14,0.033]
[1741439436143,21.51622247,138.18,138.14,6.0821]
[1741439436740,21.51622247,138.17,138.14,6.0821]
[1741439438324,28.75362247,138.17,138.14,0.033]
[1741439440142,0.03,138.18,138.15,1.5903]
[1741439440447,21.51622247,138.17,138.15,1.5903]
[1741439441044,21.54622247,138.18,138.15,1.5903]
[1741439442441,0.03,138.18,138.16,6.0821]
[1741439444122,21.54622247,138.18,138.16,0.033]
[1741439444930,0.03,138.18,138.16,0.033]
[1741439445947,21.54622247,138.18,138.16,0.033]
[1741439447249,0.03,138.18,138.16,0.033]
[1741439449648,21.54622247,138.18,138.16,0.033]
[1741439449822,21.51622247,138.17,138.16,0.033]
[1741439451030,21.54622247,138.18,138.16,0.033]
[1741439452130,0.03,138.18,138.16,0.033]
[1741439454147,21.54622247,138.18,138.16,0.033]
[1741439455340,0.03,138.18,138.16,0.033]
[1741439459858,0.03,138.18,138.17,41.75617133]
[1741439460157,156.82,138.23,138.17,123.15617133]
[1741439460332,156.82,138.23,138.19,18.64964886]
[1741439460661,21.51622247,138.24,138.19,18.64964886]
[1741439461149,0.03,138.26,138.21,18.64964886]
[1741439461349,0.03,138.26,138.22,23.10652247]
[1741439461860,0.03,138.26,138.22,1.5903]
[1741439462025,0.03,138.26,138.22,8.825]
[1741439463162,0.03,138.26,138.22,1.5903]
[1741439463548,0.03,138.23,138.22,20.23994886]
[1741439463746,0.03,138.23,138.22,1.5903]
[1741439464762,21.54622247,138.23,138.2,6.41]
[1741439465345,28.78052247,138.23,138.2,6.41]
[1741439466038,7.2643,138.23,138.2,6.41]
[1741439466766,0.03,138.23,138.2,6.41]
[1741439467137,0.03,138.23,138.21,40.16587133]
[1741439467336,21.51622247,138.26,138.21,40.16587133]
[1741439467559,21.51622247,138.25,138.2,87.81]
[1741439467767,21.51622247,138.24,138.2,87.81]
[1741439468938,28.74982247,138.25,138.2,87.81]
[1741439470452,21.51622247,138.24,138.2,81.4]
[1741439470767,21.51622247,138.23,138.2,81.4]
[1741439470972,21.51622247,138.24,138.19,18.64964886]
[1741439472042,21.51622247,138.24,138.19,25.88594886]
[1741439472542,21.51622247,138.26,138.2,21.51622247]
[1741439472874,21.51622247,138.22,138.18,82.9846]
[1741439473074,21.51622247,138.22,138.18,1.5846]
[1741439474673,28.75112247,138.22,138.18,1.5846]
[1741439475475,21.51622247,138.23,138.18,1.5846]
[1741439475678,28.17622247,138.25,138.19,40.16587133]
[1741439475861,35.40952247,138.25,138.19,40.16587133]
[1741439476374,21.54622247,138.24,138.18,104.53382247]
[1741439476544,28.75052247,138.23,138.18,83.0176]
[1741439477577,7.2343,138.23,138.18,111.77072247]
[1741439478188,21.54622247,138.24,138.19,18.64964886]
[1741439478353,0.03,138.24,138.19,40.16587133]
[1741439479571,0.03,138.24,138.19,47.40217133]
[1741439479770,21.54622247,138.24,138.19,25.88594886]
[1741439480777,0.03,138.24,138.22,21.51622247]
[1741439480979,0.03,138.24,138.23,41.69347133]
[1741439481146,0.03,138.24,138.23,1.5276]
[1741439483380,0.03,138.28,138.23,55.01267133]
[1741439483579,0.03,138.28,138.23,136.41267133]
[1741439483750,0.03,138.28,138.25,21.51622247]
[1741439484154,0.03,138.28,138.23,117.76302247]
[1741439484456,21.51622247,138.27,138.23,26.26214886]
[1741439486556,0.03,138.28,138.23,7.6125]
[1741439486557,21.51622247,138.26,138.23,7.6125]
[1741439486962,21.51622247,138.27,138.23,7.6125]
[1741439487364,0.03,138.28,138.23,36.36272247]
[1741439489186,0.03,138.27,138.23,36.36272247]
[1741439489768,0.03,138.27,138.24,40.16587133]
[1741439489974,0.03,138.27,138.23,54.44842247]
[1741439490174,0.03,138.27,138.24,18.64964886]
[1741439490569,0.03,138.28,138.26,60.16587133]
[1741439490778,0.03,138.28,138.27,21.51622247]
[1741439490981,0.03,138.32,138.29,24.93604886]
[1741439491162,0.03,138.32,138.3,21.51622247]
[1741439491670,0.03,138.32,138.31,7.2301]
[1741439491874,0.03,138.32,138.31,28.74632247]
[1741439492867,0.03,138.32,138.3,21.51622247]
[1741439493069,0.03,138.32,138.3,28.74672247]
[1741439493587,0.03,138.32,138.3,21.51622247]
[1741439493985,0.03,138.32,138.3,28.74682247]
[1741439494484,0.03,138.32,138.3,21.51622247]
[1741439495064,0.03,138.32,138.3,28.74682247]
[1741439495987,0.03,138.32,138.3,21.51622247]
[1741439497286,0.03,138.32,138.3,28.74672247]
[1741439497596,0.03,138.32,138.31,47.39597133]
[1741439499488,0.03,138.32,138.31,28.39597133]
[1741439500986,0.03,138.32,138.31,109.79597133]
[1741439501297,0.03,138.34,138.32,18.64964886]
[1741439501477,0.03,138.34,138.33,21.51622247]
[1741439501865,0.03,138.34,138.32,128.79537133]
[1741439502080,0.03,138.34,138.32,100.04964886]
[1741439504767,0.03,138.34,138.32,121.56587133]
[1741439506093,0.03,138.34,138.32,18.64964886]
[1741439506888,0.03,138.34,138.33,40.16587133]
[1741439507392,0.03,138.34,138.33,32.38217458]
[1741439507993,0.03,138.34,138.33,39.61117458]
[1741439509374,0.03,138.34,138.33,47.33183901]
[1741439511976,0.03,138.34,138.33,128.73183901]
[1741439513080,0.03,138.37,138.36,20.0]
[1741439513388,0.03,138.37,138.36,122.85319015]
[1741439513983,0.03,138.37,138.36,130.08069015]
[1741439517304,0.03,138.37,138.36,68.86553901]
[1741439520914,0.03,138.37,138.36,150.26553901]
[1741439521995,0.03,138.37,138.36,123.03803901]
[1741439522200,0.03,138.37,138.36,1.5352]
[1741439522508,0.03,138.37,138.35,81.4]
[1741439523318,0.03,138.37,138.35,110.08109015]
[1741439523607,0.03,138.37,138.35,81.4]
[1741439525135,0.03,138.37,138.32,104.38839015]
[1741439525308,0.03,138.37,138.33,21.45319015]
[1741439526537,0.03,138.37,138.33,28.68219015]
[1741439527529,0.03,138.37,138.34,0.033]
[1741439530226,0.03,138.37,138.34,21.48619015]
[1741439530729,0.03,138.37,138.36,28.68069015]
[1741439531411,0.03,138.37,138.36,20.95416601]
[1741439532442,0.03,138.37,138.35,108.96796601]
[1741439532738,0.03,138.37,138.35,81.4]
[1741439534645,0.03,138.37,138.36,21.46055918]
[1741439534816,0.03,138.37,138.36,28.68805918]
[1741439535016,0.03,138.37,138.36,47.33770804]
[1741439535508,0.03,138.37,138.36,128.73770804]
[1741439536106,0.03,138.38,138.37,26.55794886]
[1741439536345,0.03,138.38,138.37,48.01850804]
[1741439536718,0.03,138.38,138.37,55.24550804]
[1741439537738,0.03,138.38,138.37,136.64550804]
[1741439541458,0.03,138.38,138.37,121.51020804]
[1741439542450,0.03,138.38,138.37,128.73720804]